fUST/lending_fUST_20240823
["ID","MTS","AMOUNT","RATE_DAILY","PERIOD"]
[335609940,1724380251765,-151.0,0.00017937,2]
[335609941,1724380251774,-461.332869,0.00017944,2]
[335609942,1724380251783,-151.0,0.00017944,2]
[335609943,1724380251793,-151.0,0.00017944,2]
[335609944,1724380251803,-461.332869,0.00017945,2]
[335609945,1724380251812,-151.0,0.00017945,2]
[335609946,1724380251822,-151.0,0.00017945,2]
[335609947,1724380251831,-461.332869,0.00017946,2]
[335609948,1724380251841,-151.0,0.00017946,2]
[335609949,1724380251851,-151.0,0.00017946,2]
[335609950,1724380251861,-461.332869,0.00017947,2]
[335609951,1724380251871,-151.0,0.00017947,2]
[335609952,1724380251880,-151.0,0.00017947,2]
[335609953,1724380251891,-461.332869,0.00017954,2]
[335609954,1724380251901,-461.332869,0.00017954,2]
[335609955,1724380251911,-461.332869,0.00017954,2]
[335609956,1724380251921,-151.0,0.00017954,2]
[335609957,1724380251931,-151.0,0.00017954,2]
[335609958,1724380251941,-151.0,0.00017954,2]
[335609959,1724380251951,-461.332869,0.00017955,2]
[335609960,1724380251962,-461.33286,0.00017955,2]
[335609961,1724380251972,-151.0,0.00017955,2]
[335609962,1724380251983,-152.50058857,0.00017964,2]
[335609963,1724380251994,-500.0,0.00017964,2]
[335609964,1724380252003,-500.0,0.00017964,2]
[335609965,1724380252014,-500.0,0.00017964,2]
[335609966,1724380252023,-207.12393168,0.00017964,2]
[335609967,1724380252033,-500.0,0.00017964,2]
[335609968,1724380252043,-151.0,0.00017965,2]
[335609969,1724380252053,-135.17818895,0.00017965,2]
[335610012,1724381248161,-249.58603,0.00014247,2]
[335610013,1724381248186,-282.862869,0.00016641,2]
[335610014,1724381248214,-4301.8754032,0.00016821,2]
[335610015,1724381248238,-574.55075023,0.00017199,2]
[335610016,1724381248261,-153.0,0.000173,2]
[335610017,1724381248286,-307.434659,0.00017478,2]
[335610018,1724381248309,-604.4785807,0.00017478,2]
[335610019,1724381248333,-210.9142123,0.00017478,2]
[335610020,1724381248356,-306.0,0.000177,2]
[335610021,1724381248381,-155.1237061,0.000177,2]
[335610022,1724381248404,-5190.56248497,0.00017743,2]
[335610023,1724381248427,-500.0,0.00017873,2]
[335610024,1724381248450,-500.0,0.00017873,2]
[335610025,1724381248474,-511.1,0.00017873,2]
[335610026,1724381248500,-500.0,0.00017873,2]
[335610027,1724381248528,-500.0,0.00017873,2]
[335610028,1724381248554,-1345.84,0.00017873,2]
[335610029,1724381248579,-500.0,0.00017873,2]
[335610030,1724381248603,-500.0,0.00017873,2]
[335610031,1724381248627,-500.0,0.00017873,2]
[335610032,1724381248651,-500.0,0.00017873,2]
[335610033,1724381248675,-556.63,0.00017873,2]
[335610034,1724381248698,-500.0,0.00017873,2]
[335610035,1724381248722,-500.0,0.00017873,2]
[335610036,1724381248747,-500.0,0.00017873,2]
[335610037,1724381248771,-500.0,0.00017873,2]
[335610038,1724381248795,-501.79674318,0.00017873,2]
[335610039,1724381248818,-500.0,0.00017873,2]
[335610040,1724381248843,-4106.05187772,0.00017873,2]
[335610051,1724381438975,-282.8628704,0.00016871,2]
[335610052,1724381438984,-2641.23736674,0.0001708,2]
[335610054,1724381438994,-75.89976286,0.00017864,2]
[335610071,1724381441103,-9986.36936712,0.00017864,2]
[335610074,1724381443997,-8556.21950195,0.00017864,2]
[335610156,1724381447320,-1870.50142282,0.00017773,2]
[335610157,1724381447329,-1002.588279,0.00017864,2]
[335610162,1724381539625,154.89918441,0.00014519,2]
[335610175,1724382330150,-172.32085381,0.00014247,2]
[335610176,1724382334093,-64.78587419,0.00014247,2]
[335610177,1724382334117,-107.45978889,0.00016756,2]
[335610247,1724382638124,-170.24762034,0.00016756,2]
[335610249,1724382638134,-1052.35109131,0.00016756,2]
[335610251,1724382638143,-1000.0,0.000168,2]
[335610254,1724382638153,-1111.52616931,0.00017199,2]
[335610256,1724382638162,-1111.52616931,0.00017199,2]
[335610257,1724382638172,-2117.51813325,0.00017199,2]
[335610259,1724382638182,-1636.68874495,0.00017673,2]
[335610261,1724382638191,-3118.38945432,0.000177,2]
[335610263,1724382638201,-1621.40624082,0.00017772,2]
[335610266,1724382638210,-3173.52,0.00017773,2]
[335610268,1724382638219,-701.97,0.00017773,2]
[335610270,1724382638229,-500.0,0.00017773,2]
[335610272,1724382638238,-2163.27,0.00017773,2]
[335610274,1724382638247,-500.0,0.00017773,2]
[335610276,1724382638256,-500.0,0.00017773,2]
[335610278,1724382638265,-500.0,0.00017773,2]
[335610280,1724382638274,-2561.19,0.00017773,2]
[335610282,1724382638283,-721.69,0.00017773,2]
[335610284,1724382638293,-1068.21,0.00017773,2]
[335610286,1724382638302,-1919.92,0.00017773,2]
[335610288,1724382638311,-500.0,0.00017773,2]
[335610290,1724382638321,-3463.7,0.00017773,2]
[335610292,1724382638331,-500.0,0.00017773,2]
[335610294,1724382638340,-500.0,0.00017773,2]
[335610296,1724382638349,-1647.9,0.00017773,2]
[335610298,1724382638358,-500.0,0.00017773,2]
[335610300,1724382638367,-500.0,0.00017773,2]
[335610302,1724382638376,-516.59,0.00017773,2]
[335610304,1724382638385,-500.0,0.00017773,2]
[335610306,1724382638394,-500.0,0.00017773,2]
[335610308,1724382638404,-500.0,0.00017773,2]
[335610310,1724382638413,-500.0,0.00017773,2]
[335610312,1724382638422,-1257.37,0.00017773,2]
[335610314,1724382638431,-1390.16,0.00017773,2]
[335610316,1724382638441,-1289.77,0.00017773,2]
[335610318,1724382638450,-501.39276532,0.00017773,2]
[335610320,1724382638461,-500.0,0.00017773,2]
[335610322,1724382638471,-500.0,0.00017773,2]
[335610324,1724382638482,-500.0,0.00017773,2]
[335610327,1724382638492,-710.72,0.00017773,2]
[335610329,1724382638503,-500.0,0.00017773,2]
[335610331,1724382638512,-500.0,0.00017773,2]
[335610333,1724382638523,-500.0,0.00017773,2]
[335610358,1724382638746,-535.43,0.00017773,2]
[335610360,1724382638758,-500.0,0.00017773,2]
[335610362,1724382638768,-1155.95,0.00017773,2]
[335610365,1724382638783,-509.52293211,0.00017773,2]
[335610367,1724382638793,-1638.89,0.00017773,2]
[335610369,1724382638802,-500.0,0.00017773,2]
[335610371,1724382638814,-543.6,0.00017773,2]
[335610373,1724382638824,-719.96,0.00017773,2]
[335610375,1724382638834,-4153.47,0.00017773,2]
[335610377,1724382638843,-500.0,0.00017773,2]
[335610379,1724382638852,-500.0,0.00017773,2]
[335610381,1724382638863,-500.0,0.00017773,2]
[335610383,1724382638872,-500.0,0.00017773,2]
[335610385,1724382638882,-568.42,0.00017773,2]
[335610387,1724382638891,-500.0,0.00017773,2]
[335610389,1724382638900,-500.0,0.00017773,2]
[335610391,1724382638912,-502.52295025,0.00017773,2]
[335610393,1724382638921,-640.03,0.00017773,2]
[335610395,1724382638931,-1481.34,0.00017773,2]
[335610398,1724382638943,-500.0,0.00017773,2]
[335610400,1724382638953,-515.93887805,0.00017773,2]
[335610402,1724382638962,-500.0,0.00017773,2]
[335610404,1724382638971,-500.0,0.00017773,2]
[335610406,1724382638982,-500.0,0.00017773,2]
[335610408,1724382638991,-500.0,0.00017773,2]
[335610410,1724382639001,-35240.38768849,0.00017774,2]
[335610412,1724382639010,-39794.8685082,0.00017779,2]
[335610414,1724382639019,-512.91293532,0.00017789,2]
[335610416,1724382639029,-545.14901493,0.00017789,2]
[335610418,1724382639038,-319.57698704,0.00017789,2]
[335610420,1724382639047,-500.0,0.00017789,2]
[335610422,1724382639057,-500.0,0.00017789,2]
[335610424,1724382639068,-500.0,0.00017789,2]
[335610426,1724382639077,-203.57970749,0.00017789,2]
[335610428,1724382639087,-617.54714737,0.00017789,2]
[335610430,1724382639096,-500.0,0.00017789,2]
[335610432,1724382639106,-500.0,0.00017789,2]
[335610434,1724382639115,-500.0,0.00017789,2]
[335610435,1724382639124,-500.0,0.00017789,2]
[335610437,1724382639134,-500.0,0.00017789,2]
[335610439,1724382639143,-500.0,0.00017789,2]
[335610441,1724382639153,-500.0,0.00017789,2]
[335610443,1724382639162,-500.0,0.00017789,2]
[335610445,1724382639171,-500.0,0.00017789,2]
[335610447,1724382639181,-500.0,0.00017789,2]
[335610449,1724382639190,-500.0,0.00017789,2]
[335610451,1724382639199,-500.0,0.00017789,2]
[335610453,1724382639208,-500.0,0.00017789,2]
[335610455,1724382639217,-500.0,0.00017789,2]
[335610457,1724382639227,-500.0,0.00017789,2]
[335610459,1724382639237,-176.27516391,0.00017789,2]
[335610461,1724382639246,-1590.65,0.00017789,2]
[335610463,1724382639255,-500.0,0.00017789,2]
[335610465,1724382639264,-500.0,0.00017789,2]
[335610467,1724382639274,-500.0,0.00017789,2]
[335610469,1724382639283,-500.0,0.00017789,2]
[335610471,1724382639293,-500.0,0.00017789,2]
[335610473,1724382639302,-500.0,0.00017789,2]
[335610475,1724382639313,-500.0,0.00017789,2]
[335610477,1724382639322,-500.0,0.00017789,2]
[335610479,1724382639331,-500.0,0.00017789,2]
[335610481,1724382639340,-500.0,0.00017789,2]
[335610483,1724382639350,-3519.74,0.00017789,2]
[335610485,1724382639359,-500.0,0.00017789,2]
[335610487,1724382639368,-2022.41,0.00017789,2]
[335610489,1724382639377,-500.0,0.00017789,2]
[335610491,1724382639387,-500.0,0.00017789,2]
[335610493,1724382639398,-500.0,0.00017789,2]
[335610495,1724382639408,-541.68,0.00017789,2]
[335610497,1724382639419,-637.72,0.00017789,2]
[335610499,1724382639430,-500.0,0.00017789,2]
[335610502,1724382639440,-500.0,0.00017789,2]
[335610504,1724382639450,-409.99527106,0.00017789,2]
[335610506,1724382639460,-1450.2,0.00017789,2]
[335610508,1724382639472,-500.0,0.00017789,2]
[335610510,1724382639482,-500.0,0.00017789,2]
[335610512,1724382639493,-520.7,0.00017789,2]
[335610515,1724382639504,-500.0,0.00017789,2]
[335610517,1724382639515,-500.0,0.00017789,2]
[335610519,1724382639526,-311.35422224,0.00017789,2]
[335610521,1724382639537,-500.0,0.00017789,2]
[335610524,1724382639546,-207.6636928,0.000178,2]
[335610526,1724382639556,-207.6636928,0.000178,2]
[335610528,1724382639567,-153.0,0.000178,2]
[335610530,1724382639577,-500.0,0.00017813,2]
[335610532,1724382639587,-500.0,0.00017813,2]
[335610535,1724382639599,-500.0,0.00017813,2]
[335610537,1724382639611,-500.0,0.00017813,2]
[335610539,1724382639620,-309.17326541,0.00017813,2]
[335610541,1724382639632,-79589.7370164,0.00017814,2]
[335610543,1724382639642,-500.0,0.00017823,2]
[335610545,1724382639652,-500.0,0.00017823,2]
[335610547,1724382639662,-500.0,0.00017824,2]
[335610550,1724382639673,-500.0,0.00017824,2]
[335610552,1724382639683,-500.0,0.00017824,2]
[335610554,1724382639694,-383.21263275,0.00017824,2]
[335610556,1724382639703,-506.7965123,0.00017824,2]
[335610558,1724382639713,-500.0,0.00017824,2]
[335610560,1724382639722,-2008.1,0.00017824,2]
[335610562,1724382639732,-500.0,0.00017824,2]
[335610564,1724382639741,-490.41488901,0.00017824,2]
[335610566,1724382639750,-748.5,0.00017824,2]
[335610568,1724382639760,-500.0,0.00017824,2]
[335610570,1724382639769,-500.0,0.00017824,2]
[335610572,1724382639779,-297.12522781,0.00017824,2]
[335610575,1724382639792,-500.0,0.00017824,2]
[335610577,1724382639802,-500.0,0.00017824,2]
[335610579,1724382639814,-500.0,0.00017824,2]
[335610581,1724382639824,-500.0,0.00017824,2]
[335610583,1724382639833,-500.0,0.00017824,2]
[335610585,1724382639842,-500.0,0.00017824,2]
[335610587,1724382639853,-500.0,0.00017824,2]
[335610589,1724382639864,-515.45,0.00017824,2]
[335610592,1724382639875,-500.0,0.00017824,2]
[335610594,1724382639885,-500.0,0.00017824,2]
[335610596,1724382639897,-500.0,0.00017824,2]
[335610599,1724382639909,-500.0,0.00017824,2]
[335610601,1724382639919,-500.0,0.00017824,2]
[335610603,1724382639929,-500.0,0.00017824,2]
[335610605,1724382639940,-500.0,0.00017824,2]
[335610607,1724382639950,-500.0,0.00017824,2]
[335610609,1724382639960,-500.0,0.00017824,2]
[335610611,1724382639969,-200.0,0.00017824,2]
[335610613,1724382639978,-500.0,0.00017824,2]
[335610615,1724382639988,-500.0,0.00017824,2]
[335610617,1724382639998,-500.0,0.00017824,2]
[335610619,1724382640007,-500.0,0.00017824,2]
[335610621,1724382640017,-500.0,0.00017824,2]
[335610623,1724382640026,-500.0,0.00017824,2]
[335610625,1724382640036,-500.0,0.00017824,2]
[335610627,1724382640046,-500.0,0.00017824,2]
[335610629,1724382640056,-500.0,0.00017824,2]
[335610631,1724382640067,-1048.09,0.00017824,2]
[335610633,1724382640076,-500.0,0.00017824,2]
[335610635,1724382640086,-500.0,0.00017824,2]
[335610637,1724382640095,-518.12396184,0.00017824,2]
[335610639,1724382640105,-500.0,0.00017824,2]
[335610641,1724382640115,-501.25,0.00017824,2]
[335610643,1724382640124,-500.0,0.00017824,2]
[335610645,1724382640133,-755.25,0.00017824,2]
[335610647,1724382640142,-570.6,0.00017824,2]
[335610649,1724382640151,-500.0,0.00017824,2]
[335610651,1724382640161,-500.0,0.00017824,2]
[335610654,1724382640170,-500.0,0.00017824,2]
[335610656,1724382640180,-500.0,0.00017824,2]
[335610658,1724382640189,-500.0,0.00017824,2]
[335610660,1724382640199,-500.0,0.00017824,2]
[335610662,1724382640208,-510.48,0.00017824,2]
[335610664,1724382640218,-578.83,0.00017824,2]
[335610665,1724382640227,-500.0,0.00017824,2]
[335610666,1724382640236,-802.34,0.00017824,2]
[335610667,1724382640245,-500.0,0.00017824,2]
[335610668,1724382640254,-500.0,0.00017824,2]
[335610669,1724382640264,-501.08087636,0.00017824,2]
[335610671,1724382640273,-500.0,0.00017824,2]
[335610673,1724382640282,-500.0,0.00017824,2]
[335610675,1724382640292,-500.0,0.00017824,2]
[335610677,1724382640301,-500.0,0.00017824,2]
[335610679,1724382640310,-500.0,0.00017824,2]
[335610681,1724382640329,-500.0,0.00017824,2]
[335610683,1724382640339,-880.42,0.00017824,2]
[335610685,1724382640348,-500.0,0.00017824,2]
[335610687,1724382640357,-500.0,0.00017824,2]
[335610689,1724382640367,-543.98,0.00017824,2]
[335610691,1724382640376,-919.31,0.00017824,2]
[335610693,1724382640385,-500.0,0.00017824,2]
[335610695,1724382640395,-500.0,0.00017824,2]
[335610697,1724382640404,-678.93,0.00017824,2]
[335610699,1724382640413,-500.0,0.00017824,2]
[335610701,1724382640423,-190.1906689,0.00017824,2]
[335610703,1724382640433,-500.0,0.00017824,2]
[335610705,1724382640443,-500.0,0.00017824,2]
[335610707,1724382640452,-500.0,0.00017824,2]
[335610709,1724382640462,-500.0,0.00017824,2]
[335610711,1724382640470,-500.0,0.00017824,2]
[335610713,1724382640481,-500.0,0.00017824,2]
[335610715,1724382640490,-500.0,0.00017824,2]
[335610717,1724382640499,-500.0,0.00017824,2]
[335610718,1724382640509,-500.0,0.00017824,2]
[335610720,1724382640518,-500.0,0.00017824,2]
[335610722,1724382640527,-684.83,0.00017824,2]
[335610724,1724382640536,-500.0,0.00017824,2]
[335610726,1724382640545,-500.0,0.00017824,2]
[335610728,1724382640554,-529.4,0.00017824,2]
[335610730,1724382640569,-500.0,0.00017824,2]
[335610732,1724382640579,-500.0,0.00017824,2]
[335610733,1724382640588,-500.0,0.00017824,2]
[335610735,1724382640597,-500.0,0.00017824,2]
[335610737,1724382640606,-500.0,0.00017824,2]
[335610739,1724382640615,-500.0,0.00017824,2]
[335610741,1724382640625,-500.0,0.00017824,2]
[335610744,1724382640637,-500.0,0.00017824,2]
[335610746,1724382640648,-500.0,0.00017824,2]
[335610748,1724382640658,-686.94,0.00017824,2]
[335610750,1724382640670,-533.17,0.00017824,2]
[335610752,1724382640680,-500.0,0.00017824,2]
[335610754,1724382640689,-500.0,0.00017824,2]
[335610756,1724382640699,-500.0,0.00017824,2]
[335610758,1724382640710,-500.0,0.00017824,2]
[335610760,1724382640723,-500.0,0.00017824,2]
[335610762,1724382640732,-500.0,0.00017824,2]
[335610764,1724382640743,-500.0,0.00017824,2]
[335610765,1724382640754,-500.0,0.00017824,2]
[335610766,1724382640764,-743.4,0.00017824,2]
[335610767,1724382640773,-500.0,0.00017824,2]
[335610768,1724382640783,-500.0,0.00017824,2]
[335610769,1724382640793,-500.0,0.00017824,2]
[335610770,1724382640803,-1000.0,0.00017824,2]
[335610771,1724382640817,-921.35,0.00017824,2]
[335610772,1724382640828,-500.0,0.00017824,2]
[335610773,1724382640837,-500.0,0.00017824,2]
[335610774,1724382640848,-500.0,0.00017824,2]
[335610775,1724382640859,-500.0,0.00017824,2]
[335610776,1724382640870,-500.0,0.00017824,2]
[335610777,1724382640882,-500.0,0.00017824,2]
[335610778,1724382640891,-500.0,0.00017824,2]
[335610779,1724382640902,-500.0,0.00017824,2]
[335610780,1724382640911,-500.0,0.00017824,2]
[335610782,1724382640921,-500.0,0.00017824,2]
[335610784,1724382640932,-500.0,0.00017824,2]
[335610786,1724382640945,-500.0,0.00017824,2]
[335610788,1724382640956,-500.0,0.00017824,2]
[335610790,1724382640966,-500.0,0.00017824,2]
[335610792,1724382640976,-500.0,0.00017824,2]
[335610794,1724382640986,-500.0,0.00017824,2]
[335610796,1724382640996,-500.0,0.00017824,2]
[335610798,1724382641006,-500.0,0.00017824,2]
[335610800,1724382641018,-500.0,0.00017824,2]
[335610802,1724382641028,-500.0,0.00017824,2]
[335610804,1724382641039,-500.0,0.00017824,2]
[335610806,1724382641049,-500.0,0.00017824,2]
[335610807,1724382641059,-500.0,0.00017824,2]
[335610808,1724382641069,-500.0,0.00017824,2]
[335610809,1724382641079,-500.0,0.00017824,2]
[335610810,1724382641089,-500.0,0.00017824,2]
[335610811,1724382641100,-500.0,0.00017824,2]
[335610812,1724382641110,-500.0,0.00017824,2]
[335610813,1724382641120,-500.0,0.00017824,2]
[335610814,1724382641131,-500.0,0.00017824,2]
[335610815,1724382641141,-598.23440688,0.00017824,2]
[335610816,1724382641152,-500.0,0.00017824,2]
[335610817,1724382641162,-500.0,0.00017824,2]
[335610818,1724382641173,-522.87651549,0.00017824,2]
[335610819,1724382641184,-500.0,0.00017824,2]
[335610820,1724382641194,-500.0,0.00017824,2]
[335610821,1724382641204,-500.0,0.00017824,2]
[335610822,1724382641214,-500.0,0.00017824,2]
[335610823,1724382641223,-500.0,0.00017824,2]
[335610824,1724382641233,-500.0,0.00017824,2]
[335610825,1724382641243,-500.0,0.00017824,2]
[335610826,1724382641252,-500.0,0.00017824,2]
[335610827,1724382641261,-500.0,0.00017824,2]
[335610828,1724382641271,-500.0,0.00017824,2]
[335610829,1724382641281,-500.0,0.00017824,2]
[335610830,1724382641293,-500.0,0.00017824,2]
[335610831,1724382641303,-500.0,0.00017824,2]
[335610832,1724382641315,-500.0,0.00017824,2]
[335610833,1724382641326,-500.0,0.00017824,2]
[335610834,1724382641336,-500.0,0.00017824,2]
[335610835,1724382641347,-372.46490361,0.00017824,2]
[335610836,1724382641357,-500.0,0.00017824,2]
[335610837,1724382641368,-501.82316621,0.00017824,2]
[335610838,1724382641377,-500.0,0.00017824,2]
[335610839,1724382641388,-500.0,0.00017824,2]
[335610840,1724382641400,-500.0,0.00017824,2]
[335610841,1724382641410,-500.0,0.00017824,2]
[335610842,1724382641421,-500.0,0.00017824,2]
[335610843,1724382641431,-500.0,0.00017824,2]
[335610844,1724382641443,-500.0,0.00017824,2]
[335610845,1724382641454,-500.0,0.00017824,2]
[335610846,1724382641465,-500.0,0.00017824,2]
[335610847,1724382641474,-500.0,0.00017824,2]
[335610848,1724382641485,-500.0,0.00017824,2]
[335610849,1724382641496,-500.0,0.00017824,2]
[335610850,1724382641508,-511.55909388,0.00017824,2]
[335610851,1724382641518,-500.0,0.00017824,2]
[335610852,1724382641528,-500.0,0.00017824,2]
[335610853,1724382641539,-500.0,0.00017824,2]
[335610854,1724382641548,-500.0,0.00017824,2]
[335610855,1724382641558,-500.0,0.00017824,2]
[335610856,1724382641569,-714.12,0.00017824,2]
[335610857,1724382641579,-969.55,0.00017824,2]
[335610858,1724382641588,-500.0,0.00017824,2]
[335610859,1724382641598,-500.0,0.00017824,2]
[335610860,1724382641608,-500.0,0.00017824,2]
[335610861,1724382641618,-500.0,0.00017824,2]
[335610862,1724382641630,-500.0,0.00017824,2]
[335610863,1724382641641,-500.0,0.00017824,2]
[335610864,1724382641652,-598.62,0.00017824,2]
[335610865,1724382641663,-500.0,0.00017824,2]
[335610866,1724382641672,-500.0,0.00017824,2]
[335610867,1724382641682,-551.89605431,0.00017824,2]
[335610868,1724382641692,-500.0,0.00017824,2]
[335610869,1724382641701,-500.0,0.00017824,2]
[335610870,1724382641713,-500.0,0.00017824,2]
[335610871,1724382641723,-500.0,0.00017824,2]
[335610872,1724382641732,-500.0,0.00017824,2]
[335610873,1724382641743,-504.92075308,0.00017824,2]
[335610874,1724382641753,-539.28,0.00017824,2]
[335610875,1724382641762,-522.34866599,0.00017824,2]
[335610876,1724382641772,-5275.89,0.00017824,2]
[335610877,1724382641781,-500.0,0.00017824,2]
[335610878,1724382641791,-500.0,0.00017824,2]
[335610879,1724382641801,-2446.78,0.00017824,2]
[335610880,1724382641811,-500.0,0.00017824,2]
[335610881,1724382641821,-500.0,0.00017824,2]
[335610882,1724382641831,-500.0,0.00017824,2]
[335610883,1724382641841,-500.0,0.00017824,2]
[335610884,1724382641851,-500.0,0.00017824,2]
[335610885,1724382641862,-500.0,0.00017824,2]
[335610886,1724382641872,-500.0,0.00017824,2]
[335610887,1724382641881,-500.0,0.00017824,2]
[335610888,1724382641892,-774.62,0.00017824,2]
[335610889,1724382641901,-500.0,0.00017824,2]
[335610890,1724382641911,-500.0,0.00017824,2]
[335610891,1724382641921,-500.0,0.00017824,2]
[335610892,1724382641932,-547.62,0.00017824,2]
[335610893,1724382641945,-898.24,0.00017824,2]
[335610894,1724382641955,-500.0,0.00017824,2]
[335610895,1724382641965,-500.0,0.00017824,2]
[335610896,1724382641974,-500.0,0.00017824,2]
[335610897,1724382641985,-500.0,0.00017824,2]
[335610898,1724382641994,-500.0,0.00017824,2]
[335610899,1724382642003,-500.0,0.00017824,2]
[335610900,1724382642015,-500.0,0.00017824,2]
[335610901,1724382642025,-500.0,0.00017824,2]
[335610902,1724382642034,-500.0,0.00017824,2]
[335610903,1724382642044,-500.0,0.00017824,2]
[335610904,1724382642054,-151.0,0.00017824,2]
[335610905,1724382642064,-500.0,0.00017824,2]
[335610906,1724382642073,-151.0,0.00017824,2]
[335610907,1724382642083,-563.46,0.00017824,2]
[335610908,1724382642092,-500.0,0.00017824,2]
[335610909,1724382642102,-500.0,0.00017824,2]
[335610910,1724382642111,-500.0,0.00017824,2]
[335610911,1724382642120,-760.14,0.00017824,2]
[335610912,1724382642130,-500.0,0.00017824,2]
[335610913,1724382642139,-1780.01,0.00017824,2]
[335610914,1724382642149,-500.0,0.00017824,2]
[335610915,1724382642158,-500.0,0.00017824,2]
[335610916,1724382642167,-500.0,0.00017824,2]
[335610917,1724382642177,-500.0,0.00017824,2]
[335610918,1724382642186,-245.756549,0.00017824,2]
[335610919,1724382642195,-245.756549,0.00017824,2]
[335610920,1724382642204,-245.756549,0.00017824,2]
[335610921,1724382642214,-245.756549,0.00017824,2]
[335610922,1724382642224,-500.0,0.00017824,2]
[335610923,1724382642233,-517.09094903,0.00017824,2]
[335610924,1724382642243,-500.0,0.00017824,2]
[335610925,1724382642253,-151.0,0.00017824,2]
[335610926,1724382642262,-500.0,0.00017824,2]
[335610927,1724382642272,-159.721233,0.00017824,2]
[335610928,1724382642281,-500.0,0.00017824,2]
[335610929,1724382642293,-3074.95,0.00017824,2]
[335610930,1724382642305,-151.0,0.00017824,2]
[335610931,1724382642318,-151.0,0.00017824,2]
[335610932,1724382642328,-500.0,0.00017824,2]
[335610933,1724382642340,-500.0,0.00017824,2]
[335610934,1724382642351,-526.62,0.00017824,2]
[335610935,1724382642362,-500.0,0.00017824,2]
[335610936,1724382642373,-500.0,0.00017824,2]
[335610937,1724382642383,-500.0,0.00017851,2]
[335610938,1724382642394,-39794.8685082,0.00017852,2]
[335610939,1724382642406,-151.0,0.00017852,2]
[335610940,1724382642417,-785.713192,0.00017852,2]
[335610941,1724382642428,-785.713192,0.00017852,2]
[335610942,1724382642440,-904.16185,0.00017852,2]
[335610943,1724382642450,-904.16185,0.00017852,2]
[335610944,1724382642462,-207.599791,0.00017852,2]
[335610945,1724382642472,-207.599791,0.00017852,2]
[335610946,1724382642483,-683.997365,0.00017852,2]
[335610947,1724382642494,-683.997365,0.00017852,2]
[335610948,1724382642503,-336.234569,0.00017852,2]
[335610949,1724382642512,-336.234569,0.00017852,2]
[335610950,1724382642522,-152.17437,0.00017852,2]
[335610951,1724382642532,-152.17437,0.00017852,2]
[335610952,1724382642541,-151.0,0.00017852,2]
[335610953,1724382642551,-151.0,0.00017852,2]
[335610954,1724382642561,-151.0,0.00017852,2]
[335610955,1724382642572,-245.756549,0.00017852,2]
[335610956,1724382642581,-151.0,0.00017852,2]
[335610957,1724382642592,-245.756549,0.00017852,2]
[335610958,1724382642601,-151.0,0.00017852,2]
[335610959,1724382642611,-151.0,0.00017852,2]
[335610960,1724382642621,-500.0,0.00017861,2]
[335610961,1724382642631,-500.0,0.00017861,2]
[335610962,1724382642641,-500.0,0.00017861,2]